bitfinex/quotes_BTCUSD_20240905
["timestamp","ask_amount","ask_price","bid_price","bid_amount"]
[1725564520454,0.355022,56335.0,56327.0,0.355065]
[1725564520692,0.0688,56338.0,56329.0,0.19851096]
[1725564520923,0.177509,56335.0,56332.0,0.177517]
[1725564521144,0.177509,56335.0,56333.0,0.023]
[1725564521605,0.177509,56335.0,56331.0,0.20052]
[1725564522054,0.0688,56338.0,56332.0,0.17551096]
[1725564522264,0.0688,56338.0,56337.0,0.177503]
[1725564522265,0.003,56338.0,56337.0,0.177503]
[1725564522482,0.003,56338.0,56337.0,0.555509]
[1725564522697,0.003,56338.0,56337.0,0.910515]
[1725564523119,0.006,56338.0,56337.0,0.910515]
[1725564523332,0.177481,56344.0,56339.0,0.177496]
[1725564523333,0.354965,56344.0,56339.0,0.177496]
[1725564523544,0.354965,56344.0,56341.0,0.17749]
[1725564523545,0.177483,56344.0,56341.0,0.17749]
[1725564523748,0.000816,56345.0,56341.0,0.17749]
[1725564523960,0.177482,56344.0,56342.0,0.023]
[1725564524196,0.000816,56345.0,56342.0,0.377973]
[1725564524405,0.000816,56345.0,56344.0,0.532443]
[1725564524715,0.000816,56345.0,56344.0,1.08591596]
[1725564524931,0.000816,56345.0,56344.0,1.44087796]
[1725564525571,0.000816,56345.0,56344.0,1.08591596]
[1725564528058,0.000816,56345.0,56344.0,1.09391596]
[1725564528270,0.000816,56345.0,56344.0,1.15431596]
[1725564530200,0.000816,56345.0,56344.0,1.09391596]
[1725564533731,0.000816,56345.0,56344.0,0.563443]
[1725564533951,0.000816,56345.0,56344.0,0.031]
[1725564534390,0.000816,56345.0,56344.0,0.208481]
[1725564534611,0.000816,56345.0,56344.0,0.031]
[1725564534833,0.062216,56345.0,56344.0,0.031]
[1725564535051,0.062216,56345.0,56344.0,0.208481]
[1725564535270,0.000816,56345.0,56344.0,0.208481]
[1725564535493,0.00060239,56345.0,56344.0,0.208481]
[1725564537457,0.00060239,56345.0,56344.0,0.008]
[1725564537458,0.53303639,56345.0,56344.0,0.008]
[1725564537876,0.88799239,56345.0,56344.0,0.008]
[1725564538105,1.35914839,56345.0,56344.0,0.008]
[1725564539246,1.71610439,56345.0,56344.0,0.008]
[1725564539888,1.35914839,56345.0,56344.0,0.008]
[1725564540346,0.532509,56337.0,56336.0,0.001632]
[1725564540776,0.887515,56337.0,56336.0,0.001632]
[1725564541409,0.532509,56337.0,56336.0,0.001632]
[1725564541614,0.532509,56337.0,56336.0,0.012632]
[1725564542247,0.177503,56337.0,56336.0,0.012632]
[1725564542451,0.12921867,56345.0,56336.0,0.035632]
[1725564542653,0.12921867,56345.0,56337.0,0.023]
[1725564542654,0.177498,56339.0,56337.0,0.023]
[1725564543677,0.177487,56342.0,56337.0,0.378005]
[1725564543894,0.11680239,56345.0,56337.0,0.378005]
[1725564543895,0.11680239,56345.0,56337.0,0.023]
[1725564544122,0.354971,56343.0,56339.0,0.177496]
[1725564544383,0.354971,56343.0,56340.0,0.177492]
[1725564544384,0.177484,56343.0,56340.0,0.177492]
[1725564544597,0.00060239,56345.0,56343.0,0.177484]
[1725564544826,0.00060239,56345.0,56344.0,0.023]
[1725564545101,0.00060239,56345.0,56344.0,0.200481]
[1725564545320,0.00060239,56345.0,56344.0,0.023]
[1725564545534,0.00060239,56345.0,56344.0,0.555443]
[1725564545748,0.00060239,56345.0,56344.0,0.910405]
[1725564546799,0.00060239,56345.0,56344.0,1.58197796]
[1725564547026,0.00060239,56345.0,56344.0,1.58397796]
[1725564547238,0.00060239,56345.0,56344.0,1.58197796]
[1725564547684,0.00060239,56345.0,56344.0,1.58760996]
[1725564549552,0.00060239,56345.0,56344.0,1.52300996]
[1725564554158,0.53303639,56345.0,56344.0,0.005632]
[1725564554371,0.88799239,56345.0,56344.0,0.005632]
[1725564555034,1.00359239,56345.0,56344.0,0.005632]
[1725564557729,0.94879239,56345.0,56344.0,0.005632]
[1725564558361,0.23888039,56345.0,56344.0,0.005632]
[1725564558815,0.59383639,56345.0,56344.0,0.005632]
[1725564559492,0.23888039,56345.0,56344.0,0.005632]
[1725564559713,0.33888039,56345.0,56344.0,0.005632]
[1725564560157,0.16140239,56345.0,56344.0,0.005632]
[1725564560378,0.33888039,56345.0,56344.0,0.005632]
[1725564560810,0.16140239,56345.0,56344.0,0.005632]
[1725564561018,0.16140239,56345.0,56344.0,0.183113]
[1725564561229,0.16140239,56345.0,56344.0,0.005632]
[1725564562094,0.69383639,56345.0,56344.0,0.005632]
[1725564562308,0.33888039,56345.0,56344.0,0.005632]
[1725564563415,0.16140239,56345.0,56344.0,0.538075]
[1725564563627,0.10060239,56345.0,56344.0,0.183113]
[1725564564116,0.10060239,56345.0,56344.0,0.893037]
[1725564564335,0.10060239,56345.0,56344.0,1.62763834]
[1725564564785,0.10060239,56345.0,56344.0,1.349899]
[1725564565247,0.10060239,56345.0,56344.0,0.994937]
[1725564566799,0.10060239,56345.0,56344.0,1.349899]
[1725564568695,0.10060239,56345.0,56344.0,1.270999]
[1725564568916,0.10060239,56345.0,56344.0,0.538075]
[1725564569366,0.10060239,56345.0,56344.0,0.005632]
[1725564569591,0.10060239,56345.0,56344.0,0.183113]
[1725564569831,0.10060239,56345.0,56344.0,0.538075]
[1725564570062,0.10060239,56345.0,56344.0,0.561075]
[1725564570811,0.10060239,56345.0,56344.0,0.916037]
[1725564573500,0.10060239,56345.0,56344.0,1.270999]
[1725564574467,0.10060239,56345.0,56344.0,2.2219113]
[1725564574674,0.10060239,56345.0,56344.0,1.8669493]
[1725564574897,0.10060239,56345.0,56344.0,1.58920996]
[1725564576202,0.10060239,56345.0,56344.0,1.8669493]
[1725564576632,0.10060239,56345.0,56344.0,1.8619493]
[1725564577723,0.10060239,56345.0,56344.0,2.2169113]
[1725564578180,0.0924469,56345.0,56344.0,2.30676256]
[1725564578380,0.00082,56362.0,56361.0,0.963537]
[1725564578600,0.00082,56362.0,56361.0,1.7946423]
[1725564579516,0.00082,56362.0,56361.0,2.1494973]
[1725564579746,0.827308,56385.0,56373.0,0.354775]
[1725564579967,0.52650515,56382.0,56377.0,0.354752]
[1725564580188,0.178166,56384.0,56374.0,0.30073934]
[1725564580189,0.00081,56384.0,56374.0,0.30073934]
[1725564580392,0.00081,56384.0,56383.0,0.177358]
[1725564580827,0.00081,56384.0,56383.0,0.532074]
[1725564581031,0.00081,56384.0,56383.0,0.88679]
[1725564581241,0.00081,56384.0,56383.0,0.532074]
[1725564581659,0.00081,56384.0,56383.0,0.177358]
[1725564581869,0.00081,56384.0,56383.0,0.001]
[1725564582079,0.00081,56384.0,56383.0,0.185358]
[1725564582283,0.00081,56384.0,56383.0,0.007]
[1725564582755,0.244365,56384.0,56383.0,0.014]
[1725564583609,0.599075,56384.0,56383.0,0.014]
[1725564584893,0.953785,56384.0,56383.0,0.014]
[1725564587406,0.599075,56384.0,56383.0,0.014]
[1725564587629,0.00181,56384.0,56383.0,0.014]
[1725564588446,0.179165,56384.0,56383.0,0.014]
[1725564588664,0.533875,56384.0,56383.0,0.014]
[1725564589268,1.362795,56384.0,56383.0,0.014]
[1725564589546,1.462795,56384.0,56383.0,0.014]
[1725564589708,1.464795,56384.0,56383.0,0.014]
[1725564590332,1.463795,56384.0,56383.0,0.007]
[1725564590747,1.469795,56384.0,56383.0,0.008]
[1725564590949,1.467795,56384.0,56383.0,0.001]
[1725564591165,0.354788,56372.0,56367.0,0.0804]
[1725564591368,0.354788,56372.0,56368.0,0.023]
[1725564591571,0.177396,56371.0,56368.0,0.200404]
[1725564592407,0.177391,56373.0,56370.0,0.177398]
[1725564592625,0.354775,56374.0,56368.0,0.200405]
[1725564592834,0.27773934,56382.0,56368.0,0.200405]
[1725564592835,0.177394,56372.0,56368.0,0.023]
[1725564593048,0.177399,56371.0,56368.0,0.027]
[1725564593289,0.177399,56371.0,56368.0,0.204405]
[1725564593488,0.354783,56373.0,56368.0,0.204405]
[1725564593489,0.17739,56373.0,56370.0,0.177399]
[1725564593907,0.354732,56381.0,56372.0,0.0804]
[1725564594128,0.177361,56382.0,56381.0,0.00163]
[1725564594334,1.22134634,56382.0,56381.0,0.00163]
[1725564594577,1.67606934,56382.0,56381.0,0.00163]
[1725564594815,2.03079234,56382.0,56381.0,0.00163]
[1725564595259,2.10549234,56382.0,56381.0,0.00163]
[1725564595483,2.94266534,56382.0,56381.0,0.00163]
[1725564595712,2.94766534,56382.0,56381.0,0.00263]
[1725564596590,3.32238834,56382.0,56381.0,0.00263]
[1725564596827,3.33038834,56382.0,56381.0,0.00363]
[1725564597022,3.35819036,56382.0,56381.0,0.00363]
[1725564597527,3.42803858,56382.0,56381.0,0.00363]
[1725564597927,2.59086558,56382.0,56381.0,0.00363]
[1725564598141,3.01298936,56382.0,56381.0,0.00363]
[1725564598614,3.08284733,56382.0,56381.0,0.00363]
[1725564599005,2.57556636,56382.0,56381.0,0.00363]
[1725564599448,2.16629436,56382.0,56381.0,0.00363]
[1725564599685,2.54776434,56382.0,56381.0,0.00363]
[1725564599906,2.34004834,56382.0,56381.0,0.00363]
[1725564600353,2.18479134,56382.0,56381.0,0.00363]
[1725564600601,1.70696934,56382.0,56381.0,0.00363]
[1725564601050,2.07169234,56382.0,56381.0,0.00363]
[1725564601269,3.1091572,56382.0,56381.0,0.00363]
[1725564601491,2.0894932,56382.0,56381.0,0.00363]
[1725564601711,1.7247702,56382.0,56381.0,0.00363]
[1725564602456,1.28233086,56382.0,56381.0,0.00363]
[1725564603368,0.04080086,56382.0,56381.0,0.00363]
[1725564603583,0.013,56382.0,56381.0,0.00363]
[1725564604517,0.013,56382.0,56381.0,0.08403]
[1725564604783,0.013,56382.0,56381.0,0.616123]
[1725564604992,0.013,56382.0,56381.0,0.677123]
[1725564605919,0.013,56382.0,56381.0,1.054852]
[1725564606632,0.005815,56382.0,56381.0,1.408581]
[1725564606849,0.00560153,56382.0,56381.0,1.68932034]
[1725564607310,0.00560153,56382.0,56381.0,1.8648313]
[1725564607552,0.00560153,56382.0,56381.0,2.2165603]
[1725564607779,0.000815,56382.0,56381.0,2.2155603]
[1725564607998,0.001815,56382.0,56381.0,2.2245603]
[1725564608234,0.00081,56384.0,56381.0,2.2245603]
[1725564608235,0.00081,56384.0,56383.0,1.596222]
[1725564608539,0.00082,56402.0,56401.0,0.531904]
[1725564608797,0.00082,56402.0,56401.0,1.32864634]
[1725564609243,0.00082,56402.0,56401.0,0.1414]
[1725564609461,0.00082,56402.0,56401.0,0.318701]
[1725564609705,0.00082,56402.0,56401.0,0.319701]
[1725564609958,0.183118,56402.0,56401.0,0.1424]
[1725564610178,0.00582,56402.0,56401.0,0.319701]
[1725564610388,0.00682,56402.0,56401.0,0.1484]
[1725564610599,0.538715,56402.0,56401.0,0.007]
[1725564610823,0.893312,56402.0,56401.0,0.007]
[1725564611029,1.242909,56402.0,56401.0,0.006]
[1725564611255,1.242909,56402.0,56401.0,0.012]
[1725564611483,1.242909,56402.0,56401.0,0.006]
[1725564611930,1.246909,56402.0,56401.0,0.007]
[1725564612411,1.246909,56402.0,56401.0,0.001]
[1725564612412,2.010811,56402.0,56401.0,0.001]
[1725564612630,2.09243753,56402.0,56401.0,0.002]
[1725564612845,2.15403753,56402.0,56401.0,0.002]
[1725564613069,2.15403753,56402.0,56384.0,0.0828]
[1725564613070,0.532056,56385.0,56384.0,0.0828]
[1725564613283,0.35465,56394.0,56381.0,0.08443]
[1725564613284,0.354711,56384.0,56381.0,0.08443]
[1725564613525,0.177352,56385.0,56381.0,0.08443]
[1725564613719,0.177352,56385.0,56381.0,0.261793]
[1725564613923,0.27773934,56390.0,56381.0,0.08443]
[1725564614140,0.366629,56397.0,56381.0,0.08443]
[1725564614141,0.354679,56389.0,56381.0,0.08443]
[1725564614355,0.177356,56384.0,56381.0,0.08443]
[1725564614555,0.177352,56385.0,56381.0,0.08443]
[1725564614772,0.177356,56384.0,56381.0,0.08443]
[1725564614974,0.356704,56385.0,56381.0,0.08443]
[1725564614975,0.002,56385.0,56383.0,0.177357]
[1725564615404,0.002,56385.0,56382.0,0.354721]
[1725564615615,0.181341,56389.0,56383.0,0.200356]
[1725564615616,0.177339,56389.0,56383.0,0.200356]
[1725564615818,0.354685,56388.0,56383.0,0.023]
[1725564616028,0.001,56384.0,56382.0,0.023]
[1725564616247,0.177359,56383.0,56381.0,0.08443]
[1725564616462,0.001,56384.0,56381.0,0.08443]
[1725564616913,0.001,56384.0,56383.0,0.177358]
[1725564617374,0.181343,56388.0,56383.0,0.177358]
[1725564617554,0.00082,56447.0,56381.0,0.08443]
[1725564617555,0.354701,56386.0,56381.0,0.08443]
[1725564617804,0.179352,56385.0,56381.0,0.08443]
[1725564618062,0.177355,56384.0,56381.0,0.08443]
[1725564618263,0.002,56385.0,56381.0,0.08443]
[1725564618264,0.179352,56385.0,56381.0,0.08443]
[1725564618478,0.177351,56386.0,56382.0,0.177361]
[1725564618901,0.532084,56382.0,56381.0,0.08443]
[1725564619346,0.180349,56386.0,56382.0,0.177358]
[1725564619578,0.180349,56386.0,56381.0,0.08443]
[1725564619579,0.177361,56382.0,56381.0,0.08443]
[1725564620281,0.35466,56393.0,56381.0,0.08643]
[1725564620523,0.0638,56395.0,56381.0,0.08643]
[1725564620742,0.354698,56386.0,56381.0,0.263794]
[1725564620939,0.002,56385.0,56381.0,0.08643]
[1725564621222,0.002,56385.0,56382.0,0.354723]
[1725564621497,0.177343,56388.0,56381.0,0.08643]
[1725564621498,0.177343,56388.0,56384.0,0.177354]
[1725564621733,0.17734,56389.0,56384.0,0.354706]
[1725564621980,0.007815,56390.0,56384.0,0.354706]
[1725564621981,0.000815,56390.0,56389.0,0.532018]
[1725564622218,0.000815,56390.0,56389.0,0.986797]
[1725564622451,0.000815,56390.0,56389.0,1.341476]
[1725564622684,0.007815,56390.0,56389.0,1.341476]
[1725564623137,0.000815,56390.0,56389.0,1.341476]
[1725564623386,0.007815,56390.0,56389.0,1.342476]
[1725564623606,0.007815,56390.0,56389.0,1.93436596]
[1725564623846,0.000815,56390.0,56389.0,1.93336596]
[1725564624325,0.001815,56390.0,56389.0,1.93336596]
[1725564624555,0.003815,56390.0,56389.0,1.93336596]
[1725564625070,0.00082,56402.0,56401.0,1.24111]
[1725564625349,0.00082,56402.0,56401.0,1.053107]
[1725564625568,0.00082,56402.0,56401.0,0.257601]
[1725564625789,0.00082,56402.0,56401.0,0.612204]
[1725564626466,0.00182,56402.0,56401.0,0.621204]
[1725564626923,0.00182,56402.0,56401.0,0.266601]
[1725564627165,0.00182,56402.0,56395.0,0.0763]
[1725564627166,0.354606,56401.0,56395.0,0.0763]
[1725564627393,0.357417,56402.0,56401.0,0.018]
[1725564627640,0.534715,56402.0,56401.0,0.018]
[1725564627909,0.00182,56402.0,56401.0,0.009]
[1725564628126,0.00282,56402.0,56401.0,0.195301]
[1725564628592,0.00182,56402.0,56401.0,0.186301]
[1725564629077,0.00182,56402.0,56401.0,0.009]
[1725564629300,0.00182,56402.0,56401.0,1.063007]
[1725564629553,0.00182,56402.0,56401.0,1.41761]
[1725564629768,0.00282,56402.0,56401.0,1.42661]
[1725564631601,0.00282,56402.0,56401.0,1.072007]
[1725564633272,0.00282,56402.0,56401.0,0.717404]
[1725564634173,0.180118,56402.0,56401.0,0.018]
[1725564634406,0.889312,56402.0,56401.0,0.018]
[1725564634613,1.463309,56402.0,56401.0,0.018]
[1725564634867,1.817906,56402.0,56401.0,0.018]
[1725564635072,1.461309,56402.0,56401.0,0.018]
[1725564635290,1.460309,56402.0,56401.0,0.009]
[1725564635528,1.460309,56402.0,56388.0,0.177342]
[1725564635529,0.21822,56402.0,56390.0,0.177336]
[1725564635741,0.21822,56402.0,56401.0,0.008]
[1725564635742,0.694515,56402.0,56401.0,0.008]
[1725564635947,1.403709,56402.0,56401.0,0.008]
[1725564636379,1.758306,56402.0,56401.0,0.004]
[1725564636622,0.987312,56402.0,56401.0,0.004]
[1725564637067,0.10082,56402.0,56391.0,0.078]
[1725564637287,0.177322,56395.0,56392.0,0.023]
[1725564637503,0.177322,56395.0,56392.0,0.200329]
[1725564637920,0.354604,56401.0,56392.0,0.023]
[1725564638180,0.177323,56395.0,56392.0,0.023]
[1725564638620,0.002,56395.0,56392.0,0.222329]
[1725564638836,0.001,56395.0,56394.0,0.177323]
[1725564639044,0.001,56395.0,56394.0,0.66877]
[1725564639490,0.001,56395.0,56394.0,1.401064]
[1725564640383,0.001,56395.0,56394.0,1.57657496]
[1725564640871,0.00082,56402.0,56401.0,0.0761]
[1725564641097,0.00082,56402.0,56401.0,0.691704]
[1725564642191,0.00082,56402.0,56401.0,0.696704]
[1725564643287,0.00082,56402.0,56401.0,0.346101]
[1725564644204,0.00082,56402.0,56401.0,0.700704]
[1725564644617,0.00082,56402.0,56401.0,1.055307]
[1725564645264,0.00082,56402.0,56401.0,0.700704]
[1725564646615,0.00082,56402.0,56401.0,0.523403]
[1725564646833,0.00082,56402.0,56401.0,0.700704]
[1725564647272,0.00082,56402.0,56401.0,1.055307]
[1725564647720,0.00082,56402.0,56401.0,1.58542096]
[1725564647931,0.00082,56402.0,56401.0,1.94002396]
[1725564649038,0.00082,56402.0,56401.0,1.93502396]
[1725564649248,0.00082,56402.0,56401.0,1.93102396]
[1725564649471,0.00282,56402.0,56401.0,1.95002396]
[1725564651182,0.00282,56402.0,56401.0,2.31462696]
[1725564651382,0.00082,56419.0,56418.0,0.672044]
[1725564651599,0.00082,56419.0,56418.0,0.340548]
[1725564651808,0.00082,56419.0,56418.0,0.695044]
[1725564652246,0.00082,56419.0,56414.0,0.0796]
[1725564652467,0.00082,56419.0,56401.0,0.68306301]
[1725564652468,0.00082,56419.0,56407.0,0.0796]
[1725564652673,0.81029434,56419.0,56418.0,0.002]
[1725564652884,1.16478434,56419.0,56418.0,0.002]
[1725564653099,1.51927434,56419.0,56418.0,0.002]
[1725564653334,1.16478434,56419.0,56418.0,0.002]
[1725564653601,0.17727,56411.0,56408.0,0.177277]
[1725564654456,0.354513,56416.0,56407.0,0.0796]
[1725564654663,0.177268,56412.0,56409.0,0.177274]
[1725564654877,0.177266,56413.0,56408.0,0.028]
[1725564655086,0.177266,56413.0,56410.0,0.177272]
[1725564655277,0.177252,56417.0,56413.0,0.177261]
[1725564655524,0.177252,56417.0,56414.0,0.17726]
[1725564655729,0.177248,56418.0,56413.0,0.354524]
[1725564656192,0.00082,56419.0,56414.0,0.35452]
[1725564656424,0.00082,56419.0,56415.0,0.0645]
[1725564656849,0.00082,56419.0,56415.0,0.419013]
[1725564657059,0.00082,56419.0,56417.0,0.17725]
[1725564657278,0.001,56417.0,56415.0,0.241757]
[1725564657710,0.177248,56418.0,56415.0,0.241757]
[1725564658129,0.00382,56419.0,56415.0,0.0645]
[1725564658347,0.00382,56419.0,56418.0,0.531744]
[1725564658569,0.00382,56419.0,56418.0,0.554744]
[1725564658771,0.00082,56419.0,56418.0,0.554744]
[1725564659210,0.00476968,56420.0,56418.0,0.200248]
[1725564659451,0.00476968,56420.0,56419.0,0.023]
[1725564659899,0.00476968,56420.0,56419.0,0.531735]
[1725564660105,0.00476968,56420.0,56419.0,0.554735]
[1725564661356,0.00776968,56420.0,56419.0,0.909225]
[1725564661996,0.00776968,56420.0,56419.0,1.52232596]
[1725564662670,0.00776968,56420.0,56419.0,0.637835]
[1725564663114,0.00776968,56420.0,56419.0,0.992325]
[1725564663333,0.00476968,56420.0,56419.0,0.992325]
[1725564663571,0.00776968,56420.0,56419.0,1.006325]
[1725564664014,0.00776968,56420.0,56419.0,0.992325]
[1725564664670,0.00476968,56420.0,56419.0,0.992325]
[1725564664901,0.00476968,56420.0,56419.0,1.006325]
[1725564665126,0.00476968,56420.0,56419.0,0.651835]
[1725564665358,0.35925368,56420.0,56419.0,0.014]
[1725564665585,0.89097968,56420.0,56419.0,0.014]
[1725564665806,1.24546368,56420.0,56419.0,0.028]
[1725564666035,0.89097968,56420.0,56419.0,0.028]
[1725564666261,0.354528,56414.0,56408.0,0.0816]
[1725564666484,0.0556,56419.0,56408.0,0.0816]
[1725564666691,0.354543,56411.0,56408.0,0.0816]
[1725564666900,0.177273,56410.0,56408.0,0.0816]
[1725564667105,0.177267,56413.0,56408.0,0.0816]
[1725564667354,0.177271,56411.0,56408.0,0.0816]
[1725564667567,0.354525,56414.0,56408.0,0.258877]
[1725564667793,0.354495,56419.0,56408.0,0.25811096]
[1725564668027,0.177251,56417.0,56414.0,0.177259]
[1725564668249,0.177251,56417.0,56411.0,0.354535]
[1725564668250,0.531756,56417.0,56413.0,0.177263]
[1725564668469,0.531756,56417.0,56408.0,0.25911096]
[1725564668470,0.177276,56409.0,56408.0,0.0836]
[1725564668733,1.305435,56409.0,56408.0,0.002]
[1725564668964,1.361035,56409.0,56408.0,0.002]
[1725564669797,1.363035,56409.0,56408.0,0.002]
[1725564670037,0.531924,56399.0,56394.0,0.0816]
[1725564670246,0.531924,56399.0,56394.0,0.52650515]
[1725564670469,0.531924,56399.0,56390.0,0.00163]
[1725564670470,1.305656,56399.0,56390.0,0.00163]
[1725564670679,1.361256,56399.0,56390.0,0.00163]
[1725564671619,1.363256,56399.0,56390.0,0.00163]
[1725564671826,1.463256,56399.0,56390.0,0.00163]
[1725564672074,1.821872,56399.0,56398.0,0.00263]
[1725564672284,2.39346989,56399.0,56398.0,0.00263]
[1725564672480,2.03885389,56399.0,56398.0,0.00263]
[1725564672721,2.13935399,56399.0,56398.0,0.00363]
[1725564672927,2.0666467,56399.0,56398.0,0.00263]
[1725564673404,2.0666467,56399.0,56390.0,0.00163]
[1725564673405,1.663597,56391.0,56390.0,0.00163]
[1725564673616,4.33959468,56391.0,56390.0,0.00163]
[1725564673853,4.9263593,56391.0,56390.0,0.00163]
[1725564674107,5.00502389,56391.0,56390.0,0.00163]
[1725564674359,5.20838188,56391.0,56390.0,0.00163]
[1725564674563,5.12971729,56391.0,56390.0,0.00163]
[1725564674792,4.99699524,56391.0,56390.0,0.00163]
[1725564675004,4.95415703,56391.0,56390.0,0.00163]
[1725564675451,1.74666807,56391.0,56390.0,0.00163]
[1725564675880,1.75066807,56391.0,56390.0,0.00263]
[1725564676068,1.85429506,56391.0,56390.0,0.00363]
[1725564676210,1.83129506,56391.0,56390.0,0.00263]
[1725564676412,1.80349733,56391.0,56390.0,0.00263]
[1725564676654,1.80349733,56391.0,56390.0,0.00363]
[1725564676655,1.82649733,56391.0,56390.0,0.00363]
[1725564676861,1.82349733,56391.0,56390.0,0.00263]
[1725564677302,1.82649733,56391.0,56390.0,0.00363]
[1725564677507,2.71935833,56391.0,56390.0,0.00363]
[1725564677672,2.71535833,56391.0,56390.0,0.00263]
[1725564677879,3.06092894,56391.0,56390.0,0.00263]
[1725564678061,3.07002433,56391.0,56390.0,0.00263]
[1725564678461,3.07402433,56391.0,56390.0,0.00363]
[1725564678667,2.47522933,56391.0,56390.0,0.00363]
[1725564678898,2.47522933,56391.0,56390.0,0.00263]
[1725564678899,2.33330933,56391.0,56390.0,0.00263]
[1725564679769,2.33730933,56391.0,56390.0,0.00363]
[1725564680204,2.31113833,56391.0,56390.0,0.00363]
[1725564680396,2.12556333,56391.0,56390.0,0.00363]
[1725564682058,1.77089733,56391.0,56390.0,0.00363]
[1725564682491,1.75089733,56391.0,56390.0,0.00363]
[1725564683140,1.77089733,56391.0,56390.0,0.00363]
[1725564683771,2.12556333,56391.0,56390.0,0.00363]
[1725564684451,1.77089733,56391.0,56390.0,0.00363]
[1725564685413,1.95819733,56391.0,56390.0,0.00363]
[1725564685648,1.77089733,56391.0,56390.0,0.00363]
[1725564688593,1.76889733,56391.0,56390.0,0.00363]
[1725564688792,1.74889733,56391.0,56390.0,0.00363]
[1725564689058,1.71669733,56391.0,56390.0,0.00363]
[1725564689371,0.184333,56391.0,56390.0,0.08443]
[1725564689748,0.007,56391.0,56390.0,0.678038]
[1725564690205,0.007,56391.0,56390.0,1.03271]
[1725564690434,0.003,56391.0,56390.0,1.03171]
[1725564690646,0.003,56391.0,56390.0,1.05471]
[1725564690878,0.007,56391.0,56390.0,1.05571]
[1725564691106,0.000816,56398.0,56390.0,1.05571]
[1725564691107,0.000816,56398.0,56397.0,0.88657]
[1725564691337,0.000816,56398.0,56397.0,1.92427957]
[1725564692749,0.000816,56398.0,56397.0,2.27890757]
[1725564694103,0.000816,56398.0,56397.0,2.28590757]
[1725564694543,0.00558568,56420.0,56408.0,0.0793]
[1725564694755,0.00558568,56420.0,56412.0,0.0758]
[1725564694961,0.177246,56419.0,56415.0,0.177255]
[1725564695169,0.00558568,56420.0,56412.0,0.0758]
[1725564695412,0.00558568,56420.0,56412.0,0.253065]
[1725564695413,0.177251,56418.0,56412.0,0.253065]
[1725564695622,0.00558568,56420.0,56416.0,0.177251]
[1725564695840,0.00558568,56420.0,56419.0,0.177245]
[1725564696044,0.00558568,56420.0,56419.0,0.321445]
[1725564697131,0.00558568,56420.0,56419.0,0.1442]
[1725564698009,0.00558568,56420.0,56415.0,0.0809]
[1725564698286,0.00658568,56420.0,56415.0,0.0809]
[1725564698489,0.35467996,56423.0,56415.0,0.258157]
[1725564698490,0.354478,56421.0,56415.0,0.258157]
[1725564698717,0.177242,56420.0,56419.0,0.002]
[1725564698935,0.177242,56420.0,56407.0,0.354564]
[1725564698936,0.34557061,56420.0,56411.0,0.0809]
[1725564699150,0.531838,56408.0,56407.0,0.0809]
[1725564699371,0.531886,56403.0,56402.0,0.0809]
[1725564700238,0.531886,56403.0,56395.0,0.255219]
[1725564700239,0.177309,56399.0,56395.0,0.255219]
[1725564700450,0.354613,56400.0,56395.0,0.0779]
[1725564700451,0.177311,56398.0,56395.0,0.0779]
[1725564700667,0.177314,56397.0,56395.0,0.0779]
[1725564701082,0.354574,56406.0,56395.0,0.0779]
[1725564701083,0.002,56410.0,56395.0,0.0779]
[1725564701287,0.001,56399.0,56396.0,0.177314]
[1725564701497,0.001,56399.0,56395.0,0.0779]
[1725564701704,0.001,56399.0,56397.0,0.177311]
[1725564701930,0.354562,56408.0,56396.0,0.354633]
[1725564701931,0.0147917,56410.0,56396.0,0.177315]
[1725564702145,0.177307,56400.0,56396.0,0.177316]
[1725564702370,0.354596,56403.0,56397.0,0.177313]
[1725564702587,0.354581,56405.0,56399.0,0.177305]
[1725564702837,0.531873,56405.0,56400.0,0.177303]
[1725564703089,0.531873,56405.0,56396.0,0.354631]
[1725564703090,0.0625,56411.0,56395.0,0.0779]
[1725564703299,0.0625,56411.0,56397.0,0.177312]
[1725564703300,0.1773,56402.0,56397.0,0.177312]
[1725564703509,0.35459,56404.0,56397.0,0.177312]
[1725564703654,0.001,56399.0,56395.0,0.0779]
[1725564704296,0.178309,56399.0,56395.0,0.0779]
[1725564704513,0.177312,56398.0,56395.0,0.0779]
[1725564704675,0.177312,56398.0,56395.0,0.255219]
[1725564704881,0.177307,56400.0,56395.0,0.255219]
[1725564705283,0.177303,56401.0,56395.0,0.0779]
[1725564705565,0.177303,56401.0,56397.0,0.177313]
[1725564705720,0.002,56402.0,56398.0,0.17731]
[1725564705930,0.002,56402.0,56397.0,0.177314]
[1725564705931,0.177303,56401.0,56397.0,0.177314]
[1725564706141,0.177303,56401.0,56396.0,0.354634]
[1725564706142,0.177305,56400.0,56396.0,0.177315]
[1725564706336,0.177302,56401.0,56395.0,0.432536]
[1725564706544,0.177308,56399.0,56395.0,0.432536]
[1725564706756,0.001,56398.0,56397.0,0.177314]
[1725564706909,0.001,56398.0,56397.0,0.531942]
[1725564707122,0.177299,56402.0,56398.0,0.177309]
[1725564707330,0.177302,56401.0,56398.0,0.177309]
[1725564707543,0.178302,56401.0,56398.0,0.176309]
[1725564707755,0.001,56401.0,56398.0,0.176309]
[1725564707965,0.177303,56401.0,56397.0,0.177313]
[1725564708371,0.177303,56401.0,56398.0,0.17731]
[1725564708818,0.001,56402.0,56398.0,0.354621]
[1725564709045,0.178299,56402.0,56399.0,0.177307]
[1725564709483,0.354589,56404.0,56397.0,0.531935]
[1725564709484,0.177301,56401.0,56397.0,0.531935]
[1725564709718,0.177301,56401.0,56398.0,0.177309]